{"text_format":"1","workbook":"xlsx","n_sheets":2,"sheets":["CONFIG","ATIVIDADES DIÁRIAS"],"not_rendered":{"charts":0,"images":0,"macros":1,"external_links":0,"defined_names":10,"comments":0,"pivot_tables":0},"unopened":[],"bounds":{"document_bytes":16777216,"sheet_cells":100000,"rows_first":2000,"rows_last":500,"rows_between":2000,"halvings":0,"cell_chars":16384,"cell_head_chars":4096},"cells_cut":0,"cells_raw":0,"read":"whole","date_system":"1900"}

{"sheet":"CONFIG","index":0,"n_rows":137,"n_cols":14,"rows_kept":137,"cut":false,"hidden":false,"merged":[[8,10,8,12],[0,1,1,2],[0,8,1,8],[0,9,1,9],[0,6,1,6],[0,7,1,7],[0,3,1,5]]}
[null,"Configurações",null,{"$f":"TODAY()","v":"2022-02-02"},null,null,"Fevereiro",2022,"Total Registros:",{"$f":"MAX(TB_AtivCadastradas[Registro],TB_AtivCadastradas[Registro])","v":127}]
[]
[]
[]
[]
[]
[]
[]
[null,"Atividades Cadastradas",null,null,null,null,null,null,null,null,"Configurações"]
[null,"Registro","Data","Dia da Semana","ID","Coluna1","Periodicidade","Classificação","Col Auxiliar",null,"Dias","Meses","Anos","Col Auxiliar"]
[null,1,{"$f":"DATE(Config_Ano,INDEX(TB_Config[],MATCH(Config_Mes,TB_Config[Meses],0),1),DAY(TODAY()))","v":"2022-02-02"},{"$f":"IF(OR(TB_AtivCadastradas[[#This Row],[Data]]=\"\",TB_AtivCadastradas[[#This Row],[Data]]=\"-\"),\"\",PROPER(TEXT(TB_AtivCadastradas[[#This Row],[Data]],\"DDDD\")))","v":"Quarta-Feira"},"ALV - FUNC",null,"Ocasional","Profissional","-",null,1,"Janeiro",2019]
[null,2,{"$f":"DATE(Config_Ano,INDEX(TB_Config[],MATCH(Config_Mes,TB_Config[Meses],0),1),DAY(TODAY()))","v":"2022-02-02"},{"$f":"IF(OR(TB_AtivCadastradas[[#This Row],[Data]]=\"\",TB_AtivCadastradas[[#This Row],[Data]]=\"-\"),\"\",PROPER(TEXT(TB_AtivCadastradas[[#This Row],[Data]],\"DDDD\")))","v":"Quarta-Feira"},"ALV - SAN",null,"Ocasional","Profissional","-",null,2,"Fevereiro",2020]
[null,3,{"$f":"DATE(Config_Ano,INDEX(TB_Config[],MATCH(Config_Mes,TB_Config[Meses],0),1),DAY(TODAY()))","v":"2022-02-02"},{"$f":"IF(OR(TB_AtivCadastradas[[#This Row],[Data]]=\"\",TB_AtivCadastradas[[#This Row],[Data]]=\"-\"),\"\",PROPER(TEXT(TB_AtivCadastradas[[#This Row],[Data]],\"DDDD\")))","v":"Quarta-Feira"},"ISS - A",null,"Ocasional","Profissional","-",null,3,"Março",2021]
[null,4,{"$f":"DATE(Config_Ano,INDEX(TB_Config[],MATCH(Config_Mes,TB_Config[Meses],0),1),DAY(1))","v":"2022-02-01"},{"$f":"IF(OR(TB_AtivCadastradas[[#This Row],[Data]]=\"\",TB_AtivCadastradas[[#This Row],[Data]]=\"-\"),\"\",PROPER(TEXT(TB_AtivCadastradas[[#This Row],[Data]],\"DDDD\")))","v":"Terça-Feira"},"-",null,"-","-","-",null,4,"Abril",2022]
[null,5,{"$f":"DATE(Config_Ano,INDEX(TB_Config[],MATCH(Config_Mes,TB_Config[Meses],0),1),DAY(1))","v":"2022-02-01"},{"$f":"IF(OR(TB_AtivCadastradas[[#This Row],[Data]]=\"\",TB_AtivCadastradas[[#This Row],[Data]]=\"-\"),\"\",PROPER(TEXT(TB_AtivCadastradas[[#This Row],[Data]],\"DDDD\")))","v":"Terça-Feira"},null,null,null,null,null,null,5,"Maio",2023]
[null,6,{"$f":"DATE(Config_Ano,INDEX(TB_Config[],MATCH(Config_Mes,TB_Config[Meses],0),1),DAY(2))","v":"2022-02-02"},{"$f":"IF(OR(TB_AtivCadastradas[[#This Row],[Data]]=\"\",TB_AtivCadastradas[[#This Row],[Data]]=\"-\"),\"\",PROPER(TEXT(TB_AtivCadastradas[[#This Row],[Data]],\"DDDD\")))","v":"Quarta-Feira"},null,null,"-","-","-",null,6,"Junho",2024]
[null,7,{"$f":"DATE(Config_Ano,INDEX(TB_Config[],MATCH(Config_Mes,TB_Config[Meses],0),1),DAY(3))","v":"2022-02-03"},{"$f":"IF(OR(TB_AtivCadastradas[[#This Row],[Data]]=\"\",TB_AtivCadastradas[[#This Row],[Data]]=\"-\"),\"\",PROPER(TEXT(TB_AtivCadastradas[[#This Row],[Data]],\"DDDD\")))","v":"Quinta-Feira"},null,null,"-","-","-",null,7,"Julho",2025]
[null,8,{"$f":"DATE(Config_Ano,INDEX(TB_Config[],MATCH(Config_Mes,TB_Config[Meses],0),1),DAY(4))","v":"2022-02-04"},{"$f":"IF(OR(TB_AtivCadastradas[[#This Row],[Data]]=\"\",TB_AtivCadastradas[[#This Row],[Data]]=\"-\"),\"\",PROPER(TEXT(TB_AtivCadastradas[[#This Row],[Data]],\"DDDD\")))","v":"Sexta-Feira"},null,null,"-","-","-",null,8,"Agosto",2026]
[null,9,{"$f":"DATE(Config_Ano,INDEX(TB_Config[],MATCH(Config_Mes,TB_Config[Meses],0),1),DAY(5))","v":"2022-02-05"},{"$f":"IF(OR(TB_AtivCadastradas[[#This Row],[Data]]=\"\",TB_AtivCadastradas[[#This Row],[Data]]=\"-\"),\"\",PROPER(TEXT(TB_AtivCadastradas[[#This Row],[Data]],\"DDDD\")))","v":"Sábado"},"CONT",null,"Recorrente - data fixa","Profissional","-",null,9,"Setembro",2027]
[null,10,{"$f":"DATE(Config_Ano,INDEX(TB_Config[],MATCH(Config_Mes,TB_Config[Meses],0),1),DAY(5))","v":"2022-02-05"},{"$f":"IF(OR(TB_AtivCadastradas[[#This Row],[Data]]=\"\",TB_AtivCadastradas[[#This Row],[Data]]=\"-\"),\"\",PROPER(TEXT(TB_AtivCadastradas[[#This Row],[Data]],\"DDDD\")))","v":"Sábado"},"SAL - KEL",null,"Recorrente - data fixa","Profissional","-",null,10,"Outubro",2028]
[null,11,{"$f":"DATE(Config_Ano,INDEX(TB_Config[],MATCH(Config_Mes,TB_Config[Meses],0),1),DAY(5))","v":"2022-02-05"},{"$f":"IF(OR(TB_AtivCadastradas[[#This Row],[Data]]=\"\",TB_AtivCadastradas[[#This Row],[Data]]=\"-\"),\"\",PROPER(TEXT(TB_AtivCadastradas[[#This Row],[Data]],\"DDDD\")))","v":"Sábado"},"VRT - KEL",null,"Recorrente - data fixa","Profissional","-",null,11,"Novembro",2029]
[null,12,{"$f":"DATE(Config_Ano,INDEX(TB_Config[],MATCH(Config_Mes,TB_Config[Meses],0),1),DAY(6))","v":"2022-02-06"},{"$f":"IF(OR(TB_AtivCadastradas[[#This Row],[Data]]=\"\",TB_AtivCadastradas[[#This Row],[Data]]=\"-\"),\"\",PROPER(TEXT(TB_AtivCadastradas[[#This Row],[Data]],\"DDDD\")))","v":"Domingo"},null,null,null,null,null,null,12,"Dezembro",2030]
[null,13,{"$f":"DATE(Config_Ano,INDEX(TB_Config[],MATCH(Config_Mes,TB_Config[Meses],0),1),DAY(7))","v":"2022-02-07"},{"$f":"IF(OR(TB_AtivCadastradas[[#This Row],[Data]]=\"\",TB_AtivCadastradas[[#This Row],[Data]]=\"-\"),\"\",PROPER(TEXT(TB_AtivCadastradas[[#This Row],[Data]],\"DDDD\")))","v":"Segunda-Feira"},"ENE - C",null,"Recorrente - data fixa","Profissional","-",null,13]
[null,14,{"$f":"DATE(Config_Ano,INDEX(TB_Config[],MATCH(Config_Mes,TB_Config[Meses],0),1),DAY(7))","v":"2022-02-07"},{"$f":"IF(OR(TB_AtivCadastradas[[#This Row],[Data]]=\"\",TB_AtivCadastradas[[#This Row],[Data]]=\"-\"),\"\",PROPER(TEXT(TB_AtivCadastradas[[#This Row],[Data]],\"DDDD\")))","v":"Segunda-Feira"},"FGTS",null,"Recorrente - data fixa","Profissional","-",null,14]
[null,15,{"$f":"DATE(Config_Ano,INDEX(TB_Config[],MATCH(Config_Mes,TB_Config[Meses],0),1),DAY(7))","v":"2022-02-07"},{"$f":"IF(OR(TB_AtivCadastradas[[#This Row],[Data]]=\"\",TB_AtivCadastradas[[#This Row],[Data]]=\"-\"),\"\",PROPER(TEXT(TB_AtivCadastradas[[#This Row],[Data]],\"DDDD\")))","v":"Segunda-Feira"},"VCL",null,"Ocasional","Pessoal","-",null,15]
[null,16,{"$f":"DATE(Config_Ano,INDEX(TB_Config[],MATCH(Config_Mes,TB_Config[Meses],0),1),DAY(8))","v":"2022-02-08"},{"$f":"IF(OR(TB_AtivCadastradas[[#This Row],[Data]]=\"\",TB_AtivCadastradas[[#This Row],[Data]]=\"-\"),\"\",PROPER(TEXT(TB_AtivCadastradas[[#This Row],[Data]],\"DDDD\")))","v":"Terça-Feira"},"COLIX",null,"Recorrente - data fixa","Profissional","-",null,16]
[null,17,{"$f":"DATE(Config_Ano,INDEX(TB_Config[],MATCH(Config_Mes,TB_Config[Meses],0),1),DAY(10))","v":"2022-02-10"},{"$f":"IF(OR(TB_AtivCadastradas[[#This Row],[Data]]=\"\",TB_AtivCadastradas[[#This Row],[Data]]=\"-\"),\"\",PROPER(TEXT(TB_AtivCadastradas[[#This Row],[Data]],\"DDDD\")))","v":"Quinta-Feira"},"OCD",null,"Recorrente - data fixa","Pessoal","-",null,17]
[null,18,{"$f":"DATE(Config_Ano,INDEX(TB_Config[],MATCH(Config_Mes,TB_Config[Meses],0),1),DAY(11))","v":"2022-02-11"},{"$f":"IF(OR(TB_AtivCadastradas[[#This Row],[Data]]=\"\",TB_AtivCadastradas[[#This Row],[Data]]=\"-\"),\"\",PROPER(TEXT(TB_AtivCadastradas[[#This Row],[Data]],\"DDDD\")))","v":"Sexta-Feira"},null,null,null,null,null,null,18]
[null,19,{"$f":"DATE(Config_Ano,INDEX(TB_Config[],MATCH(Config_Mes,TB_Config[Meses],0),1),DAY(12))","v":"2022-02-12"},{"$f":"IF(OR(TB_AtivCadastradas[[#This Row],[Data]]=\"\",TB_AtivCadastradas[[#This Row],[Data]]=\"-\"),\"\",PROPER(TEXT(TB_AtivCadastradas[[#This Row],[Data]],\"DDDD\")))","v":"Sábado"},"SEG",null,"Recorrente - data fixa","Profissional","-",null,19]
[null,20,{"$f":"DATE(Config_Ano,INDEX(TB_Config[],MATCH(Config_Mes,TB_Config[Meses],0),1),DAY(13))","v":"2022-02-13"},{"$f":"IF(OR(TB_AtivCadastradas[[#This Row],[Data]]=\"\",TB_AtivCadastradas[[#This Row],[Data]]=\"-\"),\"\",PROPER(TEXT(TB_AtivCadastradas[[#This Row],[Data]],\"DDDD\")))","v":"Domingo"},null,null,null,null,null,null,20]
[null,21,{"$f":"DATE(Config_Ano,INDEX(TB_Config[],MATCH(Config_Mes,TB_Config[Meses],0),1),DAY(14))","v":"2022-02-14"},{"$f":"IF(OR(TB_AtivCadastradas[[#This Row],[Data]]=\"\",TB_AtivCadastradas[[#This Row],[Data]]=\"-\"),\"\",PROPER(TEXT(TB_AtivCadastradas[[#This Row],[Data]],\"DDDD\")))","v":"Segunda-Feira"},null,null,null,null,null,null,21]
[null,22,{"$f":"DATE(Config_Ano,INDEX(TB_Config[],MATCH(Config_Mes,TB_Config[Meses],0),1),DAY(15))","v":"2022-02-15"},{"$f":"IF(OR(TB_AtivCadastradas[[#This Row],[Data]]=\"\",TB_AtivCadastradas[[#This Row],[Data]]=\"-\"),\"\",PROPER(TEXT(TB_AtivCadastradas[[#This Row],[Data]],\"DDDD\")))","v":"Terça-Feira"},null,null,null,null,null,null,22]
[null,23,{"$f":"DATE(Config_Ano,INDEX(TB_Config[],MATCH(Config_Mes,TB_Config[Meses],0),1),DAY(16))","v":"2022-02-16"},{"$f":"IF(OR(TB_AtivCadastradas[[#This Row],[Data]]=\"\",TB_AtivCadastradas[[#This Row],[Data]]=\"-\"),\"\",PROPER(TEXT(TB_AtivCadastradas[[#This Row],[Data]],\"DDDD\")))","v":"Quarta-Feira"},null,null,null,null,null,null,23]
[null,24,{"$f":"DATE(Config_Ano,INDEX(TB_Config[],MATCH(Config_Mes,TB_Config[Meses],0),1),DAY(17))","v":"2022-02-17"},{"$f":"IF(OR(TB_AtivCadastradas[[#This Row],[Data]]=\"\",TB_AtivCadastradas[[#This Row],[Data]]=\"-\"),\"\",PROPER(TEXT(TB_AtivCadastradas[[#This Row],[Data]],\"DDDD\")))","v":"Quinta-Feira"},null,null,null,null,null,null,24]
[null,25,{"$f":"DATE(Config_Ano,INDEX(TB_Config[],MATCH(Config_Mes,TB_Config[Meses],0),1),DAY(18))","v":"2022-02-18"},{"$f":"IF(OR(TB_AtivCadastradas[[#This Row],[Data]]=\"\",TB_AtivCadastradas[[#This Row],[Data]]=\"-\"),\"\",PROPER(TEXT(TB_AtivCadastradas[[#This Row],[Data]],\"DDDD\")))","v":"Sexta-Feira"},"AGU",null,"Recorrente - data fixa","Profissional","-",null,25]
[null,26,{"$f":"DATE(Config_Ano,INDEX(TB_Config[],MATCH(Config_Mes,TB_Config[Meses],0),1),DAY(19))","v":"2022-02-19"},{"$f":"IF(OR(TB_AtivCadastradas[[#This Row],[Data]]=\"\",TB_AtivCadastradas[[#This Row],[Data]]=\"-\"),\"\",PROPER(TEXT(TB_AtivCadastradas[[#This Row],[Data]],\"DDDD\")))","v":"Sábado"},null,null,null,null,null,null,26]
[null,27,{"$f":"DATE(Config_Ano,INDEX(TB_Config[],MATCH(Config_Mes,TB_Config[Meses],0),1),DAY(20))","v":"2022-02-20"},{"$f":"IF(OR(TB_AtivCadastradas[[#This Row],[Data]]=\"\",TB_AtivCadastradas[[#This Row],[Data]]=\"-\"),\"\",PROPER(TEXT(TB_AtivCadastradas[[#This Row],[Data]],\"DDDD\")))","v":"Domingo"},"CEL - S",null,"Recorrente - data fixa","Profissional","-",null,27]
[null,28,{"$f":"DATE(Config_Ano,INDEX(TB_Config[],MATCH(Config_Mes,TB_Config[Meses],0),1),DAY(20))","v":"2022-02-20"},{"$f":"IF(OR(TB_AtivCadastradas[[#This Row],[Data]]=\"\",TB_AtivCadastradas[[#This Row],[Data]]=\"-\"),\"\",PROPER(TEXT(TB_AtivCadastradas[[#This Row],[Data]],\"DDDD\")))","v":"Domingo"},"ENE - S6",null,"Recorrente - data fixa","Profissional","-",null,28]
[null,29,{"$f":"DATE(Config_Ano,INDEX(TB_Config[],MATCH(Config_Mes,TB_Config[Meses],0),1),DAY(20))","v":"2022-02-20"},{"$f":"IF(OR(TB_AtivCadastradas[[#This Row],[Data]]=\"\",TB_AtivCadastradas[[#This Row],[Data]]=\"-\"),\"\",PROPER(TEXT(TB_AtivCadastradas[[#This Row],[Data]],\"DDDD\")))","v":"Domingo"},"GPS",null,"Recorrente - data fixa","Profissional","-",null,29]
[null,30,{"$f":"DATE(Config_Ano,INDEX(TB_Config[],MATCH(Config_Mes,TB_Config[Meses],0),1),DAY(20))","v":"2022-02-20"},{"$f":"IF(OR(TB_AtivCadastradas[[#This Row],[Data]]=\"\",TB_AtivCadastradas[[#This Row],[Data]]=\"-\"),\"\",PROPER(TEXT(TB_AtivCadastradas[[#This Row],[Data]],\"DDDD\")))","v":"Domingo"},"GPS - 13º",null,"Ocasional","Profissional","-",null,30]
[null,31,{"$f":"DATE(Config_Ano,INDEX(TB_Config[],MATCH(Config_Mes,TB_Config[Meses],0),1),DAY(20))","v":"2022-02-20"},{"$f":"IF(OR(TB_AtivCadastradas[[#This Row],[Data]]=\"\",TB_AtivCadastradas[[#This Row],[Data]]=\"-\"),\"\",PROPER(TEXT(TB_AtivCadastradas[[#This Row],[Data]],\"DDDD\")))","v":"Domingo"},"OI - COND",null,"Recorrente - data fixa","Profissional","-",null,31]
[null,32,{"$f":"DATE(Config_Ano,INDEX(TB_Config[],MATCH(Config_Mes,TB_Config[Meses],0),1),DAY(21))","v":"2022-02-21"},{"$f":"IF(OR(TB_AtivCadastradas[[#This Row],[Data]]=\"\",TB_AtivCadastradas[[#This Row],[Data]]=\"-\"),\"\",PROPER(TEXT(TB_AtivCadastradas[[#This Row],[Data]],\"DDDD\")))","v":"Segunda-Feira"}]
[null,33,{"$f":"DATE(Config_Ano,INDEX(TB_Config[],MATCH(Config_Mes,TB_Config[Meses],0),1),DAY(22))","v":"2022-02-22"},{"$f":"IF(OR(TB_AtivCadastradas[[#This Row],[Data]]=\"\",TB_AtivCadastradas[[#This Row],[Data]]=\"-\"),\"\",PROPER(TEXT(TB_AtivCadastradas[[#This Row],[Data]],\"DDDD\")))","v":"Terça-Feira"}]
[null,34,{"$f":"DATE(Config_Ano,INDEX(TB_Config[],MATCH(Config_Mes,TB_Config[Meses],0),1),DAY(23))","v":"2022-02-23"},{"$f":"IF(OR(TB_AtivCadastradas[[#This Row],[Data]]=\"\",TB_AtivCadastradas[[#This Row],[Data]]=\"-\"),\"\",PROPER(TEXT(TB_AtivCadastradas[[#This Row],[Data]],\"DDDD\")))","v":"Quarta-Feira"}]
[null,35,{"$f":"DATE(Config_Ano,INDEX(TB_Config[],MATCH(Config_Mes,TB_Config[Meses],0),1),DAY(24))","v":"2022-02-24"},{"$f":"IF(OR(TB_AtivCadastradas[[#This Row],[Data]]=\"\",TB_AtivCadastradas[[#This Row],[Data]]=\"-\"),\"\",PROPER(TEXT(TB_AtivCadastradas[[#This Row],[Data]],\"DDDD\")))","v":"Quinta-Feira"}]
[null,36,{"$f":"DATE(Config_Ano,INDEX(TB_Config[],MATCH(Config_Mes,TB_Config[Meses],0),1),DAY(25))","v":"2022-02-25"},{"$f":"IF(OR(TB_AtivCadastradas[[#This Row],[Data]]=\"\",TB_AtivCadastradas[[#This Row],[Data]]=\"-\"),\"\",PROPER(TEXT(TB_AtivCadastradas[[#This Row],[Data]],\"DDDD\")))","v":"Sexta-Feira"}]
[null,37,{"$f":"DATE(Config_Ano,INDEX(TB_Config[],MATCH(Config_Mes,TB_Config[Meses],0),1),DAY(26))","v":"2022-02-26"},{"$f":"IF(OR(TB_AtivCadastradas[[#This Row],[Data]]=\"\",TB_AtivCadastradas[[#This Row],[Data]]=\"-\"),\"\",PROPER(TEXT(TB_AtivCadastradas[[#This Row],[Data]],\"DDDD\")))","v":"Sábado"}]
[null,38,{"$f":"DATE(Config_Ano,INDEX(TB_Config[],MATCH(Config_Mes,TB_Config[Meses],0),1),DAY(27))","v":"2022-02-27"},{"$f":"IF(OR(TB_AtivCadastradas[[#This Row],[Data]]=\"\",TB_AtivCadastradas[[#This Row],[Data]]=\"-\"),\"\",PROPER(TEXT(TB_AtivCadastradas[[#This Row],[Data]],\"DDDD\")))","v":"Domingo"}]
[null,39,{"$f":"DATE(Config_Ano,INDEX(TB_Config[],MATCH(Config_Mes,TB_Config[Meses],0),1),DAY(28))","v":"2022-02-28"},{"$f":"IF(OR(TB_AtivCadastradas[[#This Row],[Data]]=\"\",TB_AtivCadastradas[[#This Row],[Data]]=\"-\"),\"\",PROPER(TEXT(TB_AtivCadastradas[[#This Row],[Data]],\"DDDD\")))","v":"Segunda-Feira"}]
[null,40,{"$f":"DATE(Config_Ano,INDEX(TB_Config[],MATCH(Config_Mes,TB_Config[Meses],0),1),DAY(29))","v":"2022-03-01"},{"$f":"IF(OR(TB_AtivCadastradas[[#This Row],[Data]]=\"\",TB_AtivCadastradas[[#This Row],[Data]]=\"-\"),\"\",PROPER(TEXT(TB_AtivCadastradas[[#This Row],[Data]],\"DDDD\")))","v":"Terça-Feira"}]
[null,41,{"$f":"DATE(Config_Ano,INDEX(TB_Config[],MATCH(Config_Mes,TB_Config[Meses],0),1),DAY(30))","v":"2022-03-02"},{"$f":"IF(OR(TB_AtivCadastradas[[#This Row],[Data]]=\"\",TB_AtivCadastradas[[#This Row],[Data]]=\"-\"),\"\",PROPER(TEXT(TB_AtivCadastradas[[#This Row],[Data]],\"DDDD\")))","v":"Quarta-Feira"}]
[null,42,{"$f":"DATE(Config_Ano,INDEX(TB_Config[],MATCH(Config_Mes,TB_Config[Meses],0),1),DAY(TODAY()))","v":"2022-02-02"},{"$f":"IF(OR(TB_AtivCadastradas[[#This Row],[Data]]=\"\",TB_AtivCadastradas[[#This Row],[Data]]=\"-\"),\"\",PROPER(TEXT(TB_AtivCadastradas[[#This Row],[Data]],\"DDDD\")))","v":"Quarta-Feira"},"CRO",null,"Ocasional","Profissional"]
[null,43,{"$f":"DATE(Config_Ano,INDEX(TB_Config[],MATCH(Config_Mes,TB_Config[Meses],0),1),DAY(TODAY()))","v":"2022-02-02"},{"$f":"IF(OR(TB_AtivCadastradas[[#This Row],[Data]]=\"\",TB_AtivCadastradas[[#This Row],[Data]]=\"-\"),\"\",PROPER(TEXT(TB_AtivCadastradas[[#This Row],[Data]],\"DDDD\")))","v":"Quarta-Feira"},"13º - PARC 1",null,"Ocasional","Profissional","-"]
[null,44,{"$f":"DATE(Config_Ano,INDEX(TB_Config[],MATCH(Config_Mes,TB_Config[Meses],0),1),DAY(TODAY()))","v":"2022-02-02"},{"$f":"IF(OR(TB_AtivCadastradas[[#This Row],[Data]]=\"\",TB_AtivCadastradas[[#This Row],[Data]]=\"-\"),\"\",PROPER(TEXT(TB_AtivCadastradas[[#This Row],[Data]],\"DDDD\")))","v":"Quarta-Feira"},"13º - PARC 2",null,"Ocasional","Profissional","-"]
[null,45,{"$f":"DATE(Config_Ano,INDEX(TB_Config[],MATCH(Config_Mes,TB_Config[Meses],0),1),DAY(TODAY()))","v":"2022-02-02"},{"$f":"IF(OR(TB_AtivCadastradas[[#This Row],[Data]]=\"\",TB_AtivCadastradas[[#This Row],[Data]]=\"-\"),\"\",PROPER(TEXT(TB_AtivCadastradas[[#This Row],[Data]],\"DDDD\")))","v":"Quarta-Feira"},"ASSAÍ",null,"Ocasional","Profissional","-"]
[null,46,{"$f":"DATE(Config_Ano,INDEX(TB_Config[],MATCH(Config_Mes,TB_Config[Meses],0),1),DAY(TODAY()))","v":"2022-02-02"},{"$f":"IF(OR(TB_AtivCadastradas[[#This Row],[Data]]=\"\",TB_AtivCadastradas[[#This Row],[Data]]=\"-\"),\"\",PROPER(TEXT(TB_AtivCadastradas[[#This Row],[Data]],\"DDDD\")))","v":"Quarta-Feira"},"ATACADÃO",null,"Ocasional","Profissional","-"]
[null,47,{"$f":"DATE(Config_Ano,INDEX(TB_Config[],MATCH(Config_Mes,TB_Config[Meses],0),1),DAY(TODAY()))","v":"2022-02-02"},{"$f":"IF(OR(TB_AtivCadastradas[[#This Row],[Data]]=\"\",TB_AtivCadastradas[[#This Row],[Data]]=\"-\"),\"\",PROPER(TEXT(TB_AtivCadastradas[[#This Row],[Data]],\"DDDD\")))","v":"Quarta-Feira"},"BIG",null,"Ocasional","Profissional","-"]
[null,48,{"$f":"DATE(Config_Ano,INDEX(TB_Config[],MATCH(Config_Mes,TB_Config[Meses],0),1),DAY(TODAY()))","v":"2022-02-02"},{"$f":"IF(OR(TB_AtivCadastradas[[#This Row],[Data]]=\"\",TB_AtivCadastradas[[#This Row],[Data]]=\"-\"),\"\",PROPER(TEXT(TB_AtivCadastradas[[#This Row],[Data]],\"DDDD\")))","v":"Quarta-Feira"},"CERTIF DIG",null,"Ocasional","Profissional","-"]
[null,49,{"$f":"DATE(Config_Ano,INDEX(TB_Config[],MATCH(Config_Mes,TB_Config[Meses],0),1),DAY(TODAY()))","v":"2022-02-02"},{"$f":"IF(OR(TB_AtivCadastradas[[#This Row],[Data]]=\"\",TB_AtivCadastradas[[#This Row],[Data]]=\"-\"),\"\",PROPER(TEXT(TB_AtivCadastradas[[#This Row],[Data]],\"DDDD\")))","v":"Quarta-Feira"},"DEDETINS",null,"Ocasional","Profissional","-"]
[null,50,{"$f":"DATE(Config_Ano,INDEX(TB_Config[],MATCH(Config_Mes,TB_Config[Meses],0),1),DAY(TODAY()))","v":"2022-02-02"},{"$f":"IF(OR(TB_AtivCadastradas[[#This Row],[Data]]=\"\",TB_AtivCadastradas[[#This Row],[Data]]=\"-\"),\"\",PROPER(TEXT(TB_AtivCadastradas[[#This Row],[Data]],\"DDDD\")))","v":"Quarta-Feira"},"DENT - CREMER",null,"Ocasional","Profissional","-"]
[null,51,{"$f":"DATE(Config_Ano,INDEX(TB_Config[],MATCH(Config_Mes,TB_Config[Meses],0),1),DAY(TODAY()))","v":"2022-02-02"},{"$f":"IF(OR(TB_AtivCadastradas[[#This Row],[Data]]=\"\",TB_AtivCadastradas[[#This Row],[Data]]=\"-\"),\"\",PROPER(TEXT(TB_AtivCadastradas[[#This Row],[Data]],\"DDDD\")))","v":"Quarta-Feira"},"DENT - DOCSHOP",null,"Ocasional","Profissional","-"]
[null,52,{"$f":"DATE(Config_Ano,INDEX(TB_Config[],MATCH(Config_Mes,TB_Config[Meses],0),1),DAY(TODAY()))","v":"2022-02-02"},{"$f":"IF(OR(TB_AtivCadastradas[[#This Row],[Data]]=\"\",TB_AtivCadastradas[[#This Row],[Data]]=\"-\"),\"\",PROPER(TEXT(TB_AtivCadastradas[[#This Row],[Data]],\"DDDD\")))","v":"Quarta-Feira"},"DENT - MOR",null,"Ocasional","Profissional","-"]
[null,53,{"$f":"DATE(Config_Ano,INDEX(TB_Config[],MATCH(Config_Mes,TB_Config[Meses],0),1),DAY(TODAY()))","v":"2022-02-02"},{"$f":"IF(OR(TB_AtivCadastradas[[#This Row],[Data]]=\"\",TB_AtivCadastradas[[#This Row],[Data]]=\"-\"),\"\",PROPER(TEXT(TB_AtivCadastradas[[#This Row],[Data]],\"DDDD\")))","v":"Quarta-Feira"},"DENT - NAC",null,"Ocasional","Profissional","-"]
[null,54,{"$f":"DATE(Config_Ano,INDEX(TB_Config[],MATCH(Config_Mes,TB_Config[Meses],0),1),DAY(TODAY()))","v":"2022-02-02"},{"$f":"IF(OR(TB_AtivCadastradas[[#This Row],[Data]]=\"\",TB_AtivCadastradas[[#This Row],[Data]]=\"-\"),\"\",PROPER(TEXT(TB_AtivCadastradas[[#This Row],[Data]],\"DDDD\")))","v":"Quarta-Feira"},"DENT - ORTHOMUNDI",null,"Ocasional","Profissional","-"]
[null,55,{"$f":"DATE(Config_Ano,INDEX(TB_Config[],MATCH(Config_Mes,TB_Config[Meses],0),1),DAY(TODAY()))","v":"2022-02-02"},{"$f":"IF(OR(TB_AtivCadastradas[[#This Row],[Data]]=\"\",TB_AtivCadastradas[[#This Row],[Data]]=\"-\"),\"\",PROPER(TEXT(TB_AtivCadastradas[[#This Row],[Data]],\"DDDD\")))","v":"Quarta-Feira"},"DENT - ORTO",null,"Ocasional","Profissional","-"]
[null,56,{"$f":"DATE(Config_Ano,INDEX(TB_Config[],MATCH(Config_Mes,TB_Config[Meses],0),1),DAY(TODAY()))","v":"2022-02-02"},{"$f":"IF(OR(TB_AtivCadastradas[[#This Row],[Data]]=\"\",TB_AtivCadastradas[[#This Row],[Data]]=\"-\"),\"\",PROPER(TEXT(TB_AtivCadastradas[[#This Row],[Data]],\"DDDD\")))","v":"Quarta-Feira"},"DENT - PALMAS DENTAL",null,"Ocasional","Profissional","-"]
[null,57,{"$f":"DATE(Config_Ano,INDEX(TB_Config[],MATCH(Config_Mes,TB_Config[Meses],0),1),DAY(TODAY()))","v":"2022-02-02"},{"$f":"IF(OR(TB_AtivCadastradas[[#This Row],[Data]]=\"\",TB_AtivCadastradas[[#This Row],[Data]]=\"-\"),\"\",PROPER(TEXT(TB_AtivCadastradas[[#This Row],[Data]],\"DDDD\")))","v":"Quarta-Feira"},"DENT - SDS",null,"Ocasional","Profissional","-"]
[null,58,{"$f":"DATE(Config_Ano,INDEX(TB_Config[],MATCH(Config_Mes,TB_Config[Meses],0),1),DAY(TODAY()))","v":"2022-02-02"},{"$f":"IF(OR(TB_AtivCadastradas[[#This Row],[Data]]=\"\",TB_AtivCadastradas[[#This Row],[Data]]=\"-\"),\"\",PROPER(TEXT(TB_AtivCadastradas[[#This Row],[Data]],\"DDDD\")))","v":"Quarta-Feira"},"DENT - TOC",null,"Ocasional","Profissional","-"]
[null,59,{"$f":"DATE(Config_Ano,INDEX(TB_Config[],MATCH(Config_Mes,TB_Config[Meses],0),1),DAY(TODAY()))","v":"2022-02-02"},{"$f":"IF(OR(TB_AtivCadastradas[[#This Row],[Data]]=\"\",TB_AtivCadastradas[[#This Row],[Data]]=\"-\"),\"\",PROPER(TEXT(TB_AtivCadastradas[[#This Row],[Data]],\"DDDD\")))","v":"Quarta-Feira"},"EDUC",null,"Ocasional","Profissional","-"]
[null,60,{"$f":"DATE(Config_Ano,INDEX(TB_Config[],MATCH(Config_Mes,TB_Config[Meses],0),1),DAY(TODAY()))","v":"2022-02-02"},{"$f":"IF(OR(TB_AtivCadastradas[[#This Row],[Data]]=\"\",TB_AtivCadastradas[[#This Row],[Data]]=\"-\"),\"\",PROPER(TEXT(TB_AtivCadastradas[[#This Row],[Data]],\"DDDD\")))","v":"Quarta-Feira"},"ELMAQ",null,"Ocasional","Profissional","-"]
[null,61,{"$f":"DATE(Config_Ano,INDEX(TB_Config[],MATCH(Config_Mes,TB_Config[Meses],0),1),DAY(TODAY()))","v":"2022-02-02"},{"$f":"IF(OR(TB_AtivCadastradas[[#This Row],[Data]]=\"\",TB_AtivCadastradas[[#This Row],[Data]]=\"-\"),\"\",PROPER(TEXT(TB_AtivCadastradas[[#This Row],[Data]],\"DDDD\")))","v":"Quarta-Feira"},"EMB - CENT",null,"Ocasional","Profissional","-"]
[null,62,{"$f":"DATE(Config_Ano,INDEX(TB_Config[],MATCH(Config_Mes,TB_Config[Meses],0),1),DAY(TODAY()))","v":"2022-02-02"},{"$f":"IF(OR(TB_AtivCadastradas[[#This Row],[Data]]=\"\",TB_AtivCadastradas[[#This Row],[Data]]=\"-\"),\"\",PROPER(TEXT(TB_AtivCadastradas[[#This Row],[Data]],\"DDDD\")))","v":"Quarta-Feira"},"EVOLUX",null,"Ocasional","Profissional","-"]
[null,63,{"$f":"DATE(Config_Ano,INDEX(TB_Config[],MATCH(Config_Mes,TB_Config[Meses],0),1),DAY(TODAY()))","v":"2022-02-02"},{"$f":"IF(OR(TB_AtivCadastradas[[#This Row],[Data]]=\"\",TB_AtivCadastradas[[#This Row],[Data]]=\"-\"),\"\",PROPER(TEXT(TB_AtivCadastradas[[#This Row],[Data]],\"DDDD\")))","v":"Quarta-Feira"},"EXTC",null,"Ocasional","Profissional","-"]
[null,64,{"$f":"DATE(Config_Ano,INDEX(TB_Config[],MATCH(Config_Mes,TB_Config[Meses],0),1),DAY(TODAY()))","v":"2022-02-02"},{"$f":"IF(OR(TB_AtivCadastradas[[#This Row],[Data]]=\"\",TB_AtivCadastradas[[#This Row],[Data]]=\"-\"),\"\",PROPER(TEXT(TB_AtivCadastradas[[#This Row],[Data]],\"DDDD\")))","v":"Quarta-Feira"},"FORN/PREST - AVS",null,"Ocasional",null,"-"]
[null,65,{"$f":"DATE(Config_Ano,INDEX(TB_Config[],MATCH(Config_Mes,TB_Config[Meses],0),1),DAY(TODAY()))","v":"2022-02-02"},{"$f":"IF(OR(TB_AtivCadastradas[[#This Row],[Data]]=\"\",TB_AtivCadastradas[[#This Row],[Data]]=\"-\"),\"\",PROPER(TEXT(TB_AtivCadastradas[[#This Row],[Data]],\"DDDD\")))","v":"Quarta-Feira"},"FUNC - FER",null,"Ocasional","Profissional","-"]
[null,66,{"$f":"DATE(Config_Ano,INDEX(TB_Config[],MATCH(Config_Mes,TB_Config[Meses],0),1),DAY(TODAY()))","v":"2022-02-02"},{"$f":"IF(OR(TB_AtivCadastradas[[#This Row],[Data]]=\"\",TB_AtivCadastradas[[#This Row],[Data]]=\"-\"),\"\",PROPER(TEXT(TB_AtivCadastradas[[#This Row],[Data]],\"DDDD\")))","v":"Quarta-Feira"},"GEI - PHA",null,"Ocasional","Profissional","-"]
[null,67,{"$f":"DATE(Config_Ano,INDEX(TB_Config[],MATCH(Config_Mes,TB_Config[Meses],0),1),DAY(TODAY()))","v":"2022-02-02"},{"$f":"IF(OR(TB_AtivCadastradas[[#This Row],[Data]]=\"\",TB_AtivCadastradas[[#This Row],[Data]]=\"-\"),\"\",PROPER(TEXT(TB_AtivCadastradas[[#This Row],[Data]],\"DDDD\")))","v":"Quarta-Feira"},"GIGANTE",null,"Ocasional","Profissional","-"]
[null,68,{"$f":"DATE(Config_Ano,INDEX(TB_Config[],MATCH(Config_Mes,TB_Config[Meses],0),1),DAY(TODAY()))","v":"2022-02-02"},{"$f":"IF(OR(TB_AtivCadastradas[[#This Row],[Data]]=\"\",TB_AtivCadastradas[[#This Row],[Data]]=\"-\"),\"\",PROPER(TEXT(TB_AtivCadastradas[[#This Row],[Data]],\"DDDD\")))","v":"Quarta-Feira"},"IMP",null,"Ocasional","Profissional"]
[null,69,{"$f":"DATE(Config_Ano,INDEX(TB_Config[],MATCH(Config_Mes,TB_Config[Meses],0),1),DAY(TODAY()))","v":"2022-02-02"},{"$f":"IF(OR(TB_AtivCadastradas[[#This Row],[Data]]=\"\",TB_AtivCadastradas[[#This Row],[Data]]=\"-\"),\"\",PROPER(TEXT(TB_AtivCadastradas[[#This Row],[Data]],\"DDDD\")))","v":"Quarta-Feira"},"IPTU",null,"Ocasional","Profissional","-"]
[null,70,{"$f":"DATE(Config_Ano,INDEX(TB_Config[],MATCH(Config_Mes,TB_Config[Meses],0),1),DAY(TODAY()))","v":"2022-02-02"},{"$f":"IF(OR(TB_AtivCadastradas[[#This Row],[Data]]=\"\",TB_AtivCadastradas[[#This Row],[Data]]=\"-\"),\"\",PROPER(TEXT(TB_AtivCadastradas[[#This Row],[Data]],\"DDDD\")))","v":"Quarta-Feira"},"IRPF",null,"Ocasional","Profissional","-"]
[null,71,{"$f":"DATE(Config_Ano,INDEX(TB_Config[],MATCH(Config_Mes,TB_Config[Meses],0),1),DAY(TODAY()))","v":"2022-02-02"},{"$f":"IF(OR(TB_AtivCadastradas[[#This Row],[Data]]=\"\",TB_AtivCadastradas[[#This Row],[Data]]=\"-\"),\"\",PROPER(TEXT(TB_AtivCadastradas[[#This Row],[Data]],\"DDDD\")))","v":"Quarta-Feira"},"LAB - MED",null,"Ocasional","Profissional","-"]
[null,72,{"$f":"DATE(Config_Ano,INDEX(TB_Config[],MATCH(Config_Mes,TB_Config[Meses],0),1),DAY(TODAY()))","v":"2022-02-02"},{"$f":"IF(OR(TB_AtivCadastradas[[#This Row],[Data]]=\"\",TB_AtivCadastradas[[#This Row],[Data]]=\"-\"),\"\",PROPER(TEXT(TB_AtivCadastradas[[#This Row],[Data]],\"DDDD\")))","v":"Quarta-Feira"},"MAX",null,"Ocasional","Profissional","-"]
[null,73,{"$f":"DATE(Config_Ano,INDEX(TB_Config[],MATCH(Config_Mes,TB_Config[Meses],0),1),DAY(TODAY()))","v":"2022-02-02"},{"$f":"IF(OR(TB_AtivCadastradas[[#This Row],[Data]]=\"\",TB_AtivCadastradas[[#This Row],[Data]]=\"-\"),\"\",PROPER(TEXT(TB_AtivCadastradas[[#This Row],[Data]],\"DDDD\")))","v":"Quarta-Feira"},"MEDCENTER",null,"Ocasional","Profissional","-"]
[null,74,{"$f":"DATE(Config_Ano,INDEX(TB_Config[],MATCH(Config_Mes,TB_Config[Meses],0),1),DAY(TODAY()))","v":"2022-02-02"},{"$f":"IF(OR(TB_AtivCadastradas[[#This Row],[Data]]=\"\",TB_AtivCadastradas[[#This Row],[Data]]=\"-\"),\"\",PROPER(TEXT(TB_AtivCadastradas[[#This Row],[Data]],\"DDDD\")))","v":"Quarta-Feira"},"MEDMAIS",null,"Ocasional","Profissional","-"]
[null,75,{"$f":"DATE(Config_Ano,INDEX(TB_Config[],MATCH(Config_Mes,TB_Config[Meses],0),1),DAY(TODAY()))","v":"2022-02-02"},{"$f":"IF(OR(TB_AtivCadastradas[[#This Row],[Data]]=\"\",TB_AtivCadastradas[[#This Row],[Data]]=\"-\"),\"\",PROPER(TEXT(TB_AtivCadastradas[[#This Row],[Data]],\"DDDD\")))","v":"Quarta-Feira"},"ODONTEC",null,"Ocasional","Profissional","-"]
[null,76,{"$f":"DATE(Config_Ano,INDEX(TB_Config[],MATCH(Config_Mes,TB_Config[Meses],0),1),DAY(TODAY()))","v":"2022-02-02"},{"$f":"IF(OR(TB_AtivCadastradas[[#This Row],[Data]]=\"\",TB_AtivCadastradas[[#This Row],[Data]]=\"-\"),\"\",PROPER(TEXT(TB_AtivCadastradas[[#This Row],[Data]],\"DDDD\")))","v":"Quarta-Feira"},"PAC - BOL (PH)",null,"Ocasional","Profissional"]
[null,77,{"$f":"DATE(Config_Ano,INDEX(TB_Config[],MATCH(Config_Mes,TB_Config[Meses],0),1),DAY(TODAY()))","v":"2022-02-02"},{"$f":"IF(OR(TB_AtivCadastradas[[#This Row],[Data]]=\"\",TB_AtivCadastradas[[#This Row],[Data]]=\"-\"),\"\",PROPER(TEXT(TB_AtivCadastradas[[#This Row],[Data]],\"DDDD\")))","v":"Quarta-Feira"},"PAC (C) - CHQ",null,"Ocasional","Profissional","-"]
[null,78,{"$f":"DATE(Config_Ano,INDEX(TB_Config[],MATCH(Config_Mes,TB_Config[Meses],0),1),DAY(TODAY()))","v":"2022-02-02"},{"$f":"IF(OR(TB_AtivCadastradas[[#This Row],[Data]]=\"\",TB_AtivCadastradas[[#This Row],[Data]]=\"-\"),\"\",PROPER(TEXT(TB_AtivCadastradas[[#This Row],[Data]],\"DDDD\")))","v":"Quarta-Feira"},"PAC (C) - CRD (PS)",null,"Ocasional","Profissional","-"]
[null,79,{"$f":"DATE(Config_Ano,INDEX(TB_Config[],MATCH(Config_Mes,TB_Config[Meses],0),1),DAY(TODAY()))","v":"2022-02-02"},{"$f":"IF(OR(TB_AtivCadastradas[[#This Row],[Data]]=\"\",TB_AtivCadastradas[[#This Row],[Data]]=\"-\"),\"\",PROPER(TEXT(TB_AtivCadastradas[[#This Row],[Data]],\"DDDD\")))","v":"Quarta-Feira"},"PAC (C) - CRD (PS)",null,"Ocasional","Profissional","-"]
[null,80,{"$f":"DATE(Config_Ano,INDEX(TB_Config[],MATCH(Config_Mes,TB_Config[Meses],0),1),DAY(TODAY()))","v":"2022-02-02"},{"$f":"IF(OR(TB_AtivCadastradas[[#This Row],[Data]]=\"\",TB_AtivCadastradas[[#This Row],[Data]]=\"-\"),\"\",PROPER(TEXT(TB_AtivCadastradas[[#This Row],[Data]],\"DDDD\")))","v":"Quarta-Feira"},"PAC (C) - CTSA",null,"Ocasional","Profissional","-"]
[null,81,{"$f":"DATE(Config_Ano,INDEX(TB_Config[],MATCH(Config_Mes,TB_Config[Meses],0),1),DAY(TODAY()))","v":"2022-02-02"},{"$f":"IF(OR(TB_AtivCadastradas[[#This Row],[Data]]=\"\",TB_AtivCadastradas[[#This Row],[Data]]=\"-\"),\"\",PROPER(TEXT(TB_AtivCadastradas[[#This Row],[Data]],\"DDDD\")))","v":"Quarta-Feira"},"PAC (C) - DEB (PS)",null,"Ocasional","Profissional","-"]
[null,82,{"$f":"DATE(Config_Ano,INDEX(TB_Config[],MATCH(Config_Mes,TB_Config[Meses],0),1),DAY(TODAY()))","v":"2022-02-02"},{"$f":"IF(OR(TB_AtivCadastradas[[#This Row],[Data]]=\"\",TB_AtivCadastradas[[#This Row],[Data]]=\"-\"),\"\",PROPER(TEXT(TB_AtivCadastradas[[#This Row],[Data]],\"DDDD\")))","v":"Quarta-Feira"},"PAC (C) - DIN",null,"Ocasional","Profissional","-"]
[null,83,{"$f":"DATE(Config_Ano,INDEX(TB_Config[],MATCH(Config_Mes,TB_Config[Meses],0),1),DAY(TODAY()))","v":"2022-02-02"},{"$f":"IF(OR(TB_AtivCadastradas[[#This Row],[Data]]=\"\",TB_AtivCadastradas[[#This Row],[Data]]=\"-\"),\"\",PROPER(TEXT(TB_AtivCadastradas[[#This Row],[Data]],\"DDDD\")))","v":"Quarta-Feira"},"PAC (C) - PIX",null,"Ocasional","Profissional","-"]
[null,84,{"$f":"DATE(Config_Ano,INDEX(TB_Config[],MATCH(Config_Mes,TB_Config[Meses],0),1),DAY(TODAY()))","v":"2022-02-02"},{"$f":"IF(OR(TB_AtivCadastradas[[#This Row],[Data]]=\"\",TB_AtivCadastradas[[#This Row],[Data]]=\"-\"),\"\",PROPER(TEXT(TB_AtivCadastradas[[#This Row],[Data]],\"DDDD\")))","v":"Quarta-Feira"},"PAC (C) - TRF",null,"Ocasional","Profissional","-"]
[null,85,{"$f":"DATE(Config_Ano,INDEX(TB_Config[],MATCH(Config_Mes,TB_Config[Meses],0),1),DAY(TODAY()))","v":"2022-02-02"},{"$f":"IF(OR(TB_AtivCadastradas[[#This Row],[Data]]=\"\",TB_AtivCadastradas[[#This Row],[Data]]=\"-\"),\"\",PROPER(TEXT(TB_AtivCadastradas[[#This Row],[Data]],\"DDDD\")))","v":"Quarta-Feira"},"PAC (P) - BOL (PH)",null,"Ocasional","Profissional"]
[null,86,{"$f":"DATE(Config_Ano,INDEX(TB_Config[],MATCH(Config_Mes,TB_Config[Meses],0),1),DAY(TODAY()))","v":"2022-02-02"},{"$f":"IF(OR(TB_AtivCadastradas[[#This Row],[Data]]=\"\",TB_AtivCadastradas[[#This Row],[Data]]=\"-\"),\"\",PROPER(TEXT(TB_AtivCadastradas[[#This Row],[Data]],\"DDDD\")))","v":"Quarta-Feira"},"PAC (P) - CHQ",null,"Ocasional","Profissional","-"]
[null,87,{"$f":"DATE(Config_Ano,INDEX(TB_Config[],MATCH(Config_Mes,TB_Config[Meses],0),1),DAY(TODAY()))","v":"2022-02-02"},{"$f":"IF(OR(TB_AtivCadastradas[[#This Row],[Data]]=\"\",TB_AtivCadastradas[[#This Row],[Data]]=\"-\"),\"\",PROPER(TEXT(TB_AtivCadastradas[[#This Row],[Data]],\"DDDD\")))","v":"Quarta-Feira"},"PAC (P) - CRD (P) (PS)",null,"Ocasional","Profissional","-"]
[null,88,{"$f":"DATE(Config_Ano,INDEX(TB_Config[],MATCH(Config_Mes,TB_Config[Meses],0),1),DAY(TODAY()))","v":"2022-02-02"},{"$f":"IF(OR(TB_AtivCadastradas[[#This Row],[Data]]=\"\",TB_AtivCadastradas[[#This Row],[Data]]=\"-\"),\"\",PROPER(TEXT(TB_AtivCadastradas[[#This Row],[Data]],\"DDDD\")))","v":"Quarta-Feira"},"PAC (P) - CRD (PS)",null,"Ocasional","Profissional","-"]
[null,89,{"$f":"DATE(Config_Ano,INDEX(TB_Config[],MATCH(Config_Mes,TB_Config[Meses],0),1),DAY(TODAY()))","v":"2022-02-02"},{"$f":"IF(OR(TB_AtivCadastradas[[#This Row],[Data]]=\"\",TB_AtivCadastradas[[#This Row],[Data]]=\"-\"),\"\",PROPER(TEXT(TB_AtivCadastradas[[#This Row],[Data]],\"DDDD\")))","v":"Quarta-Feira"},"PAC (P) - CTSA",null,"Ocasional","Profissional","-"]
[null,90,{"$f":"DATE(Config_Ano,INDEX(TB_Config[],MATCH(Config_Mes,TB_Config[Meses],0),1),DAY(TODAY()))","v":"2022-02-02"},{"$f":"IF(OR(TB_AtivCadastradas[[#This Row],[Data]]=\"\",TB_AtivCadastradas[[#This Row],[Data]]=\"-\"),\"\",PROPER(TEXT(TB_AtivCadastradas[[#This Row],[Data]],\"DDDD\")))","v":"Quarta-Feira"},"PAC (P) - DEB (PS)",null,"Ocasional","Profissional","-"]
[null,91,{"$f":"DATE(Config_Ano,INDEX(TB_Config[],MATCH(Config_Mes,TB_Config[Meses],0),1),DAY(TODAY()))","v":"2022-02-02"},{"$f":"IF(OR(TB_AtivCadastradas[[#This Row],[Data]]=\"\",TB_AtivCadastradas[[#This Row],[Data]]=\"-\"),\"\",PROPER(TEXT(TB_AtivCadastradas[[#This Row],[Data]],\"DDDD\")))","v":"Quarta-Feira"},"PAC (P) - DIN",null,"Ocasional","Profissional","-"]
[null,92,{"$f":"DATE(Config_Ano,INDEX(TB_Config[],MATCH(Config_Mes,TB_Config[Meses],0),1),DAY(TODAY()))","v":"2022-02-02"},{"$f":"IF(OR(TB_AtivCadastradas[[#This Row],[Data]]=\"\",TB_AtivCadastradas[[#This Row],[Data]]=\"-\"),\"\",PROPER(TEXT(TB_AtivCadastradas[[#This Row],[Data]],\"DDDD\")))","v":"Quarta-Feira"},"PAC (P) - PIX",null,"Ocasional","Profissional","-"]
[null,93,{"$f":"DATE(Config_Ano,INDEX(TB_Config[],MATCH(Config_Mes,TB_Config[Meses],0),1),DAY(TODAY()))","v":"2022-02-02"},{"$f":"IF(OR(TB_AtivCadastradas[[#This Row],[Data]]=\"\",TB_AtivCadastradas[[#This Row],[Data]]=\"-\"),\"\",PROPER(TEXT(TB_AtivCadastradas[[#This Row],[Data]],\"DDDD\")))","v":"Quarta-Feira"},"PAC (P) - TRF",null,"Ocasional","Profissional","-"]
[null,94,{"$f":"DATE(Config_Ano,INDEX(TB_Config[],MATCH(Config_Mes,TB_Config[Meses],0),1),DAY(TODAY()))","v":"2022-02-02"},{"$f":"IF(OR(TB_AtivCadastradas[[#This Row],[Data]]=\"\",TB_AtivCadastradas[[#This Row],[Data]]=\"-\"),\"\",PROPER(TEXT(TB_AtivCadastradas[[#This Row],[Data]],\"DDDD\")))","v":"Quarta-Feira"},"PAP - MTC",null,"Ocasional","Profissional","-"]
[null,95,{"$f":"DATE(Config_Ano,INDEX(TB_Config[],MATCH(Config_Mes,TB_Config[Meses],0),1),DAY(TODAY()))","v":"2022-02-02"},{"$f":"IF(OR(TB_AtivCadastradas[[#This Row],[Data]]=\"\",TB_AtivCadastradas[[#This Row],[Data]]=\"-\"),\"\",PROPER(TEXT(TB_AtivCadastradas[[#This Row],[Data]],\"DDDD\")))","v":"Quarta-Feira"},"PAP - PMW",null,"Ocasional","Profissional"]
[null,96,{"$f":"DATE(Config_Ano,INDEX(TB_Config[],MATCH(Config_Mes,TB_Config[Meses],0),1),DAY(TODAY()))","v":"2022-02-02"},{"$f":"IF(OR(TB_AtivCadastradas[[#This Row],[Data]]=\"\",TB_AtivCadastradas[[#This Row],[Data]]=\"-\"),\"\",PROPER(TEXT(TB_AtivCadastradas[[#This Row],[Data]],\"DDDD\")))","v":"Quarta-Feira"},"PGS - TX",null,"Ocasional","Profissional"]
[null,97,{"$f":"DATE(Config_Ano,INDEX(TB_Config[],MATCH(Config_Mes,TB_Config[Meses],0),1),DAY(TODAY()))","v":"2022-02-02"},{"$f":"IF(OR(TB_AtivCadastradas[[#This Row],[Data]]=\"\",TB_AtivCadastradas[[#This Row],[Data]]=\"-\"),\"\",PROPER(TEXT(TB_AtivCadastradas[[#This Row],[Data]],\"DDDD\")))","v":"Quarta-Feira"},"PHP - TX",null,"Ocasional","Profissional","-"]
[null,98,{"$f":"DATE(Config_Ano,INDEX(TB_Config[],MATCH(Config_Mes,TB_Config[Meses],0),1),DAY(TODAY()))","v":"2022-02-02"},{"$f":"IF(OR(TB_AtivCadastradas[[#This Row],[Data]]=\"\",TB_AtivCadastradas[[#This Row],[Data]]=\"-\"),\"\",PROPER(TEXT(TB_AtivCadastradas[[#This Row],[Data]],\"DDDD\")))","v":"Quarta-Feira"},"PRODENT",null,"Ocasional","Profissional","-"]
[null,99,{"$f":"DATE(Config_Ano,INDEX(TB_Config[],MATCH(Config_Mes,TB_Config[Meses],0),1),DAY(TODAY()))","v":"2022-02-02"},{"$f":"IF(OR(TB_AtivCadastradas[[#This Row],[Data]]=\"\",TB_AtivCadastradas[[#This Row],[Data]]=\"-\"),\"\",PROPER(TEXT(TB_AtivCadastradas[[#This Row],[Data]],\"DDDD\")))","v":"Quarta-Feira"},"QTO",null,"Ocasional","Profissional","-"]
[null,100,{"$f":"DATE(Config_Ano,INDEX(TB_Config[],MATCH(Config_Mes,TB_Config[Meses],0),1),DAY(TODAY()))","v":"2022-02-02"},{"$f":"IF(OR(TB_AtivCadastradas[[#This Row],[Data]]=\"\",TB_AtivCadastradas[[#This Row],[Data]]=\"-\"),\"\",PROPER(TEXT(TB_AtivCadastradas[[#This Row],[Data]],\"DDDD\")))","v":"Quarta-Feira"},"SAUDE",null,"Ocasional","Profissional","-"]
[null,101,{"$f":"DATE(Config_Ano,INDEX(TB_Config[],MATCH(Config_Mes,TB_Config[Meses],0),1),DAY(EOMONTH(TODAY(),0)))","v":"2022-02-28"},{"$f":"IF(OR(TB_AtivCadastradas[[#This Row],[Data]]=\"\",TB_AtivCadastradas[[#This Row],[Data]]=\"-\"),\"\",PROPER(TEXT(TB_AtivCadastradas[[#This Row],[Data]],\"DDDD\")))","v":"Segunda-Feira"},"SPAL - E01",null,"Recorrente - data variável","Profissional","-"]
[null,102,{"$f":"DATE(Config_Ano,INDEX(TB_Config[],MATCH(Config_Mes,TB_Config[Meses],0),1),DAY(EOMONTH(TODAY(),0)))","v":"2022-02-28"},{"$f":"IF(OR(TB_AtivCadastradas[[#This Row],[Data]]=\"\",TB_AtivCadastradas[[#This Row],[Data]]=\"-\"),\"\",PROPER(TEXT(TB_AtivCadastradas[[#This Row],[Data]],\"DDDD\")))","v":"Segunda-Feira"},"SPAL - E02",null,"Recorrente - data variável","Profissional","-"]
[null,103,{"$f":"DATE(Config_Ano,INDEX(TB_Config[],MATCH(Config_Mes,TB_Config[Meses],0),1),DAY(EOMONTH(TODAY(),0)))","v":"2022-02-28"},{"$f":"IF(OR(TB_AtivCadastradas[[#This Row],[Data]]=\"\",TB_AtivCadastradas[[#This Row],[Data]]=\"-\"),\"\",PROPER(TEXT(TB_AtivCadastradas[[#This Row],[Data]],\"DDDD\")))","v":"Segunda-Feira"},"SPAL - E03",null,"Recorrente - data variável","Profissional","-"]
[null,104,{"$f":"DATE(Config_Ano,INDEX(TB_Config[],MATCH(Config_Mes,TB_Config[Meses],0),1),DAY(EOMONTH(TODAY(),0)))","v":"2022-02-28"},{"$f":"IF(OR(TB_AtivCadastradas[[#This Row],[Data]]=\"\",TB_AtivCadastradas[[#This Row],[Data]]=\"-\"),\"\",PROPER(TEXT(TB_AtivCadastradas[[#This Row],[Data]],\"DDDD\")))","v":"Segunda-Feira"},"SPAL - E04",null,"Recorrente - data variável","Profissional","-"]
[null,105,{"$f":"DATE(Config_Ano,INDEX(TB_Config[],MATCH(Config_Mes,TB_Config[Meses],0),1),DAY(EOMONTH(TODAY(),0)))","v":"2022-02-28"},{"$f":"IF(OR(TB_AtivCadastradas[[#This Row],[Data]]=\"\",TB_AtivCadastradas[[#This Row],[Data]]=\"-\"),\"\",PROPER(TEXT(TB_AtivCadastradas[[#This Row],[Data]],\"DDDD\")))","v":"Segunda-Feira"},"SPAL - E05",null,"Ocasional","Profissional","-"]
[null,106,{"$f":"DATE(Config_Ano,INDEX(TB_Config[],MATCH(Config_Mes,TB_Config[Meses],0),1),DAY(EOMONTH(TODAY(),0)))","v":"2022-02-28"},{"$f":"IF(OR(TB_AtivCadastradas[[#This Row],[Data]]=\"\",TB_AtivCadastradas[[#This Row],[Data]]=\"-\"),\"\",PROPER(TEXT(TB_AtivCadastradas[[#This Row],[Data]],\"DDDD\")))","v":"Segunda-Feira"},"SPAL - E06",null,"Ocasional","Profissional","-"]
[null,107,{"$f":"DATE(Config_Ano,INDEX(TB_Config[],MATCH(Config_Mes,TB_Config[Meses],0),1),DAY(EOMONTH(TODAY(),0)))","v":"2022-02-28"},{"$f":"IF(OR(TB_AtivCadastradas[[#This Row],[Data]]=\"\",TB_AtivCadastradas[[#This Row],[Data]]=\"-\"),\"\",PROPER(TEXT(TB_AtivCadastradas[[#This Row],[Data]],\"DDDD\")))","v":"Segunda-Feira"},"SPAL - E07",null,"Ocasional","Profissional","-"]
[null,108,{"$f":"DATE(Config_Ano,INDEX(TB_Config[],MATCH(Config_Mes,TB_Config[Meses],0),1),DAY(EOMONTH(TODAY(),0)))","v":"2022-02-28"},{"$f":"IF(OR(TB_AtivCadastradas[[#This Row],[Data]]=\"\",TB_AtivCadastradas[[#This Row],[Data]]=\"-\"),\"\",PROPER(TEXT(TB_AtivCadastradas[[#This Row],[Data]],\"DDDD\")))","v":"Segunda-Feira"},"SPAL - E08",null,"Ocasional","Profissional","-"]
[null,109,{"$f":"DATE(Config_Ano,INDEX(TB_Config[],MATCH(Config_Mes,TB_Config[Meses],0),1),DAY(EOMONTH(TODAY(),0)))","v":"2022-02-28"},{"$f":"IF(OR(TB_AtivCadastradas[[#This Row],[Data]]=\"\",TB_AtivCadastradas[[#This Row],[Data]]=\"-\"),\"\",PROPER(TEXT(TB_AtivCadastradas[[#This Row],[Data]],\"DDDD\")))","v":"Segunda-Feira"},"SPAL - S01",null,"Recorrente - data variável","Profissional","-"]
[null,110,{"$f":"DATE(Config_Ano,INDEX(TB_Config[],MATCH(Config_Mes,TB_Config[Meses],0),1),DAY(EOMONTH(TODAY(),0)))","v":"2022-02-28"},{"$f":"IF(OR(TB_AtivCadastradas[[#This Row],[Data]]=\"\",TB_AtivCadastradas[[#This Row],[Data]]=\"-\"),\"\",PROPER(TEXT(TB_AtivCadastradas[[#This Row],[Data]],\"DDDD\")))","v":"Segunda-Feira"},"SPAL - S02",null,"Recorrente - data variável","Profissional","-"]
[null,111,{"$f":"DATE(Config_Ano,INDEX(TB_Config[],MATCH(Config_Mes,TB_Config[Meses],0),1),DAY(EOMONTH(TODAY(),0)))","v":"2022-02-28"},{"$f":"IF(OR(TB_AtivCadastradas[[#This Row],[Data]]=\"\",TB_AtivCadastradas[[#This Row],[Data]]=\"-\"),\"\",PROPER(TEXT(TB_AtivCadastradas[[#This Row],[Data]],\"DDDD\")))","v":"Segunda-Feira"},"SPAL - S03",null,"Ocasional","Profissional","-"]
[null,112,{"$f":"DATE(Config_Ano,INDEX(TB_Config[],MATCH(Config_Mes,TB_Config[Meses],0),1),DAY(EOMONTH(TODAY(),0)))","v":"2022-02-28"},{"$f":"IF(OR(TB_AtivCadastradas[[#This Row],[Data]]=\"\",TB_AtivCadastradas[[#This Row],[Data]]=\"-\"),\"\",PROPER(TEXT(TB_AtivCadastradas[[#This Row],[Data]],\"DDDD\")))","v":"Segunda-Feira"},"SPAL - S04",null,"Ocasional","Profissional","-"]
[null,113,{"$f":"DATE(Config_Ano,INDEX(TB_Config[],MATCH(Config_Mes,TB_Config[Meses],0),1),DAY(EOMONTH(TODAY(),0)))","v":"2022-02-28"},{"$f":"IF(OR(TB_AtivCadastradas[[#This Row],[Data]]=\"\",TB_AtivCadastradas[[#This Row],[Data]]=\"-\"),\"\",PROPER(TEXT(TB_AtivCadastradas[[#This Row],[Data]],\"DDDD\")))","v":"Segunda-Feira"},"SPAL - S05",null,"Ocasional","Profissional","-"]
[null,114,{"$f":"DATE(Config_Ano,INDEX(TB_Config[],MATCH(Config_Mes,TB_Config[Meses],0),1),DAY(EOMONTH(TODAY(),0)))","v":"2022-02-28"},{"$f":"IF(OR(TB_AtivCadastradas[[#This Row],[Data]]=\"\",TB_AtivCadastradas[[#This Row],[Data]]=\"-\"),\"\",PROPER(TEXT(TB_AtivCadastradas[[#This Row],[Data]],\"DDDD\")))","v":"Segunda-Feira"},"STO - E01",null,"Recorrente - data variável","Profissional","-"]
[null,115,{"$f":"DATE(Config_Ano,INDEX(TB_Config[],MATCH(Config_Mes,TB_Config[Meses],0),1),DAY(EOMONTH(TODAY(),0)))","v":"2022-02-28"},{"$f":"IF(OR(TB_AtivCadastradas[[#This Row],[Data]]=\"\",TB_AtivCadastradas[[#This Row],[Data]]=\"-\"),\"\",PROPER(TEXT(TB_AtivCadastradas[[#This Row],[Data]],\"DDDD\")))","v":"Segunda-Feira"},"STO - E02",null,"Recorrente - data variável","Profissional","-"]
[null,116,{"$f":"DATE(Config_Ano,INDEX(TB_Config[],MATCH(Config_Mes,TB_Config[Meses],0),1),DAY(EOMONTH(TODAY(),0)))","v":"2022-02-28"},{"$f":"IF(OR(TB_AtivCadastradas[[#This Row],[Data]]=\"\",TB_AtivCadastradas[[#This Row],[Data]]=\"-\"),\"\",PROPER(TEXT(TB_AtivCadastradas[[#This Row],[Data]],\"DDDD\")))","v":"Segunda-Feira"},"STO - E03",null,"Ocasional","Profissional","-"]
[null,117,{"$f":"DATE(Config_Ano,INDEX(TB_Config[],MATCH(Config_Mes,TB_Config[Meses],0),1),DAY(EOMONTH(TODAY(),0)))","v":"2022-02-28"},{"$f":"IF(OR(TB_AtivCadastradas[[#This Row],[Data]]=\"\",TB_AtivCadastradas[[#This Row],[Data]]=\"-\"),\"\",PROPER(TEXT(TB_AtivCadastradas[[#This Row],[Data]],\"DDDD\")))","v":"Segunda-Feira"},"STO - E04",null,"Ocasional","Profissional","-"]
[null,118,{"$f":"DATE(Config_Ano,INDEX(TB_Config[],MATCH(Config_Mes,TB_Config[Meses],0),1),DAY(EOMONTH(TODAY(),0)))","v":"2022-02-28"},{"$f":"IF(OR(TB_AtivCadastradas[[#This Row],[Data]]=\"\",TB_AtivCadastradas[[#This Row],[Data]]=\"-\"),\"\",PROPER(TEXT(TB_AtivCadastradas[[#This Row],[Data]],\"DDDD\")))","v":"Segunda-Feira"},"STO - E05",null,"Ocasional","Profissional","-"]
[null,119,{"$f":"DATE(Config_Ano,INDEX(TB_Config[],MATCH(Config_Mes,TB_Config[Meses],0),1),DAY(EOMONTH(TODAY(),0)))","v":"2022-02-28"},{"$f":"IF(OR(TB_AtivCadastradas[[#This Row],[Data]]=\"\",TB_AtivCadastradas[[#This Row],[Data]]=\"-\"),\"\",PROPER(TEXT(TB_AtivCadastradas[[#This Row],[Data]],\"DDDD\")))","v":"Segunda-Feira"},"STO - E06",null,"Recorrente - data variável","Profissional","-"]
[null,120,{"$f":"DATE(Config_Ano,INDEX(TB_Config[],MATCH(Config_Mes,TB_Config[Meses],0),1),DAY(EOMONTH(TODAY(),0)))","v":"2022-02-28"},{"$f":"IF(OR(TB_AtivCadastradas[[#This Row],[Data]]=\"\",TB_AtivCadastradas[[#This Row],[Data]]=\"-\"),\"\",PROPER(TEXT(TB_AtivCadastradas[[#This Row],[Data]],\"DDDD\")))","v":"Segunda-Feira"},"STO - E07",null,"Ocasional","Profissional","-"]
[null,121,{"$f":"DATE(Config_Ano,INDEX(TB_Config[],MATCH(Config_Mes,TB_Config[Meses],0),1),DAY(EOMONTH(TODAY(),0)))","v":"2022-02-28"},{"$f":"IF(OR(TB_AtivCadastradas[[#This Row],[Data]]=\"\",TB_AtivCadastradas[[#This Row],[Data]]=\"-\"),\"\",PROPER(TEXT(TB_AtivCadastradas[[#This Row],[Data]],\"DDDD\")))","v":"Segunda-Feira"},"STO - E08",null,"Ocasional","Profissional","-"]
[null,122,{"$f":"DATE(Config_Ano,INDEX(TB_Config[],MATCH(Config_Mes,TB_Config[Meses],0),1),DAY(EOMONTH(TODAY(),0)))","v":"2022-02-28"},{"$f":"IF(OR(TB_AtivCadastradas[[#This Row],[Data]]=\"\",TB_AtivCadastradas[[#This Row],[Data]]=\"-\"),\"\",PROPER(TEXT(TB_AtivCadastradas[[#This Row],[Data]],\"DDDD\")))","v":"Segunda-Feira"},"STO - S01",null,"Recorrente - data variável","Profissional","-"]
[null,123,{"$f":"DATE(Config_Ano,INDEX(TB_Config[],MATCH(Config_Mes,TB_Config[Meses],0),1),DAY(EOMONTH(TODAY(),0)))","v":"2022-02-28"},{"$f":"IF(OR(TB_AtivCadastradas[[#This Row],[Data]]=\"\",TB_AtivCadastradas[[#This Row],[Data]]=\"-\"),\"\",PROPER(TEXT(TB_AtivCadastradas[[#This Row],[Data]],\"DDDD\")))","v":"Segunda-Feira"},"STO - S02",null,"Recorrente - data variável","Profissional","-"]
[null,124,{"$f":"DATE(Config_Ano,INDEX(TB_Config[],MATCH(Config_Mes,TB_Config[Meses],0),1),DAY(EOMONTH(TODAY(),0)))","v":"2022-02-28"},{"$f":"IF(OR(TB_AtivCadastradas[[#This Row],[Data]]=\"\",TB_AtivCadastradas[[#This Row],[Data]]=\"-\"),\"\",PROPER(TEXT(TB_AtivCadastradas[[#This Row],[Data]],\"DDDD\")))","v":"Segunda-Feira"},"STO - S03",null,"Ocasional","Profissional","-"]
[null,125,{"$f":"DATE(Config_Ano,INDEX(TB_Config[],MATCH(Config_Mes,TB_Config[Meses],0),1),DAY(EOMONTH(TODAY(),0)))","v":"2022-02-28"},{"$f":"IF(OR(TB_AtivCadastradas[[#This Row],[Data]]=\"\",TB_AtivCadastradas[[#This Row],[Data]]=\"-\"),\"\",PROPER(TEXT(TB_AtivCadastradas[[#This Row],[Data]],\"DDDD\")))","v":"Segunda-Feira"},"STO - S04",null,"Ocasional","Profissional","-"]
[null,126,{"$f":"DATE(Config_Ano,INDEX(TB_Config[],MATCH(Config_Mes,TB_Config[Meses],0),1),DAY(EOMONTH(TODAY(),0)))","v":"2022-02-28"},{"$f":"IF(OR(TB_AtivCadastradas[[#This Row],[Data]]=\"\",TB_AtivCadastradas[[#This Row],[Data]]=\"-\"),\"\",PROPER(TEXT(TB_AtivCadastradas[[#This Row],[Data]],\"DDDD\")))","v":"Segunda-Feira"},"STO - S05",null,"Ocasional","Profissional","-"]
[null,127,{"$f":"DATE(Config_Ano,INDEX(TB_Config[],MATCH(Config_Mes,TB_Config[Meses],0),1),DAY(TODAY()))","v":"2022-02-02"},{"$f":"IF(OR(TB_AtivCadastradas[[#This Row],[Data]]=\"\",TB_AtivCadastradas[[#This Row],[Data]]=\"-\"),\"\",PROPER(TEXT(TB_AtivCadastradas[[#This Row],[Data]],\"DDDD\")))","v":"Quarta-Feira"},"VMC",null,"Ocasional","Profissional","-"]

{"sheet":"ATIVIDADES DIÁRIAS","index":1,"n_rows":39,"n_cols":11,"rows_kept":39,"cut":false,"hidden":false,"merged":[[23,1,23,3],[0,9,1,9],[0,10,1,10],[0,1,1,3],[0,7,1,7],[0,8,1,8],[3,1,3,3],[0,4,1,6]]}
[null,"Atividades Diárias",null,null,{"$f":"TODAY()","v":"2022-02-02"},null,null,"Fevereiro",2022,"Total Registros:",{"$f":"SUMPRODUCT(--(TB_AtivDiarias[Data]<>\"\"))","v":14}]
[]
[]
[null,null,null,null,{"$f":"AtivDiarias_Ano","v":2022}]
[null,"Mês","Coluna1","Coluna2","Coluna3","Coluna4","Coluna5","Coluna6","Coluna7"]
[null,"Janeiro",{"$f":"COUNTIF(TB_AtivDiarias[Mês],TB_AtivDiarias_RelConsolidado[[#This Row],[Mês]])","v":14}]
[null,"Fevereiro",{"$f":"COUNTIF(TB_AtivDiarias[Mês],TB_AtivDiarias_RelConsolidado[[#This Row],[Mês]])","v":0}]
[null,"Março",{"$f":"COUNTIF(TB_AtivDiarias[Mês],TB_AtivDiarias_RelConsolidado[[#This Row],[Mês]])","v":0}]
[null,"Abril",{"$f":"COUNTIF(TB_AtivDiarias[Mês],TB_AtivDiarias_RelConsolidado[[#This Row],[Mês]])","v":0}]
[null,"Maio",{"$f":"COUNTIF(TB_AtivDiarias[Mês],TB_AtivDiarias_RelConsolidado[[#This Row],[Mês]])","v":0}]
[null,"Junho",{"$f":"COUNTIF(TB_AtivDiarias[Mês],TB_AtivDiarias_RelConsolidado[[#This Row],[Mês]])","v":0}]
[null,"Julho",{"$f":"COUNTIF(TB_AtivDiarias[Mês],TB_AtivDiarias_RelConsolidado[[#This Row],[Mês]])","v":0}]
[null,"Agosto",{"$f":"COUNTIF(TB_AtivDiarias[Mês],TB_AtivDiarias_RelConsolidado[[#This Row],[Mês]])","v":0}]
[null,"Setembro",{"$f":"COUNTIF(TB_AtivDiarias[Mês],TB_AtivDiarias_RelConsolidado[[#This Row],[Mês]])","v":0}]
[null,"Outubro",{"$f":"COUNTIF(TB_AtivDiarias[Mês],TB_AtivDiarias_RelConsolidado[[#This Row],[Mês]])","v":0}]
[null,"Novembro",{"$f":"COUNTIF(TB_AtivDiarias[Mês],TB_AtivDiarias_RelConsolidado[[#This Row],[Mês]])","v":0}]
[null,"Dezembro",{"$f":"COUNTIF(TB_AtivDiarias[Mês],TB_AtivDiarias_RelConsolidado[[#This Row],[Mês]])","v":0}]
[null,"Total",{"$f":"SUBTOTAL(109,TB_AtivDiarias_RelConsolidado[Coluna1])","v":14}]
[]
[null,"Consultar Atividade Cadastrada"]
[null,"Registro",null,"ID"]
[null,null,null,"CONT"]
[]
[null,"Atividades Diárias"]
[null,"Registro","Data","Dia da Semana","ID","Coluna1","Periodicidade","Classificação","Mês","Ano","Col Auxiliar"]
[null,11,"2022-01-20",{"$f":"IF(OR(TB_AtivDiarias[[#This Row],[Data]]=\"\",TB_AtivDiarias[[#This Row],[Data]]=\"-\"),\"-\",PROPER(TEXT(TB_AtivDiarias[[#This Row],[Data]],\"DDDD\")))","v":"Quinta-Feira"},"OI - COND",null,"Recorrente - data fixa","Profissional",{"$f":"PROPER(IF(TB_AtivDiarias[[#This Row],[Data]]=\"\",\"\",TEXT(TB_AtivDiarias[[#This Row],[Data]],\"MMMM\")))","v":"Janeiro"},{"$f":"IF(TB_AtivDiarias[[#This Row],[Data]]=\"\",\"\",YEAR(TB_AtivDiarias[[#This Row],[Data]]))","v":2022}]
[null,10,"2022-01-18",{"$f":"IF(OR(TB_AtivDiarias[[#This Row],[Data]]=\"\",TB_AtivDiarias[[#This Row],[Data]]=\"-\"),\"-\",PROPER(TEXT(TB_AtivDiarias[[#This Row],[Data]],\"DDDD\")))","v":"Terça-Feira"},"AGU",null,"Recorrente - data fixa","Profissional",{"$f":"PROPER(IF(TB_AtivDiarias[[#This Row],[Data]]=\"\",\"\",TEXT(TB_AtivDiarias[[#This Row],[Data]],\"MMMM\")))","v":"Janeiro"},{"$f":"IF(TB_AtivDiarias[[#This Row],[Data]]=\"\",\"\",YEAR(TB_AtivDiarias[[#This Row],[Data]]))","v":2022},"-"]
[null,9,"2022-01-12",{"$f":"IF(OR(TB_AtivDiarias[[#This Row],[Data]]=\"\",TB_AtivDiarias[[#This Row],[Data]]=\"-\"),\"-\",PROPER(TEXT(TB_AtivDiarias[[#This Row],[Data]],\"DDDD\")))","v":"Quarta-Feira"},"SEG",null,"Recorrente - data fixa","Profissional",{"$f":"PROPER(IF(TB_AtivDiarias[[#This Row],[Data]]=\"\",\"\",TEXT(TB_AtivDiarias[[#This Row],[Data]],\"MMMM\")))","v":"Janeiro"},{"$f":"IF(TB_AtivDiarias[[#This Row],[Data]]=\"\",\"\",YEAR(TB_AtivDiarias[[#This Row],[Data]]))","v":2022},"-"]
[null,7,"2022-01-08",{"$f":"IF(OR(TB_AtivDiarias[[#This Row],[Data]]=\"\",TB_AtivDiarias[[#This Row],[Data]]=\"-\"),\"-\",PROPER(TEXT(TB_AtivDiarias[[#This Row],[Data]],\"DDDD\")))","v":"Sábado"},"COLIX",null,"Recorrente - data fixa","Profissional",{"$f":"PROPER(IF(TB_AtivDiarias[[#This Row],[Data]]=\"\",\"\",TEXT(TB_AtivDiarias[[#This Row],[Data]],\"MMMM\")))","v":"Janeiro"},{"$f":"IF(TB_AtivDiarias[[#This Row],[Data]]=\"\",\"\",YEAR(TB_AtivDiarias[[#This Row],[Data]]))","v":2022},"-"]
[null,6,"2022-01-07",{"$f":"IF(OR(TB_AtivDiarias[[#This Row],[Data]]=\"\",TB_AtivDiarias[[#This Row],[Data]]=\"-\"),\"-\",PROPER(TEXT(TB_AtivDiarias[[#This Row],[Data]],\"DDDD\")))","v":"Sexta-Feira"},"ENE - C",null,"Recorrente - data fixa","Profissional",{"$f":"PROPER(IF(TB_AtivDiarias[[#This Row],[Data]]=\"\",\"\",TEXT(TB_AtivDiarias[[#This Row],[Data]],\"MMMM\")))","v":"Janeiro"},{"$f":"IF(TB_AtivDiarias[[#This Row],[Data]]=\"\",\"\",YEAR(TB_AtivDiarias[[#This Row],[Data]]))","v":2022}]
[null,5,"2022-01-07",{"$f":"IF(OR(TB_AtivDiarias[[#This Row],[Data]]=\"\",TB_AtivDiarias[[#This Row],[Data]]=\"-\"),\"-\",PROPER(TEXT(TB_AtivDiarias[[#This Row],[Data]],\"DDDD\")))","v":"Sexta-Feira"},"FGTS",null,"Recorrente - data fixa","Profissional",{"$f":"PROPER(IF(TB_AtivDiarias[[#This Row],[Data]]=\"\",\"\",TEXT(TB_AtivDiarias[[#This Row],[Data]],\"MMMM\")))","v":"Janeiro"},{"$f":"IF(TB_AtivDiarias[[#This Row],[Data]]=\"\",\"\",YEAR(TB_AtivDiarias[[#This Row],[Data]]))","v":2022},"-"]
[null,4,"2022-01-05",{"$f":"IF(OR(TB_AtivDiarias[[#This Row],[Data]]=\"\",TB_AtivDiarias[[#This Row],[Data]]=\"-\"),\"-\",PROPER(TEXT(TB_AtivDiarias[[#This Row],[Data]],\"DDDD\")))","v":"Quarta-Feira"},"SAL - KEL",null,"Recorrente - data fixa","Profissional",{"$f":"PROPER(IF(TB_AtivDiarias[[#This Row],[Data]]=\"\",\"\",TEXT(TB_AtivDiarias[[#This Row],[Data]],\"MMMM\")))","v":"Janeiro"},{"$f":"IF(TB_AtivDiarias[[#This Row],[Data]]=\"\",\"\",YEAR(TB_AtivDiarias[[#This Row],[Data]]))","v":2022},"-"]
[null,3,"2022-01-05",{"$f":"IF(OR(TB_AtivDiarias[[#This Row],[Data]]=\"\",TB_AtivDiarias[[#This Row],[Data]]=\"-\"),\"-\",PROPER(TEXT(TB_AtivDiarias[[#This Row],[Data]],\"DDDD\")))","v":"Quarta-Feira"},"VRT - KEL",null,"Recorrente - data fixa","Profissional",{"$f":"PROPER(IF(TB_AtivDiarias[[#This Row],[Data]]=\"\",\"\",TEXT(TB_AtivDiarias[[#This Row],[Data]],\"MMMM\")))","v":"Janeiro"},{"$f":"IF(TB_AtivDiarias[[#This Row],[Data]]=\"\",\"\",YEAR(TB_AtivDiarias[[#This Row],[Data]]))","v":2022},"-"]
[null,2,"2022-01-05",{"$f":"IF(OR(TB_AtivDiarias[[#This Row],[Data]]=\"\",TB_AtivDiarias[[#This Row],[Data]]=\"-\"),\"-\",PROPER(TEXT(TB_AtivDiarias[[#This Row],[Data]],\"DDDD\")))","v":"Quarta-Feira"},"CONT",null,"Recorrente - data fixa","Profissional",{"$f":"PROPER(IF(TB_AtivDiarias[[#This Row],[Data]]=\"\",\"\",TEXT(TB_AtivDiarias[[#This Row],[Data]],\"MMMM\")))","v":"Janeiro"},{"$f":"IF(TB_AtivDiarias[[#This Row],[Data]]=\"\",\"\",YEAR(TB_AtivDiarias[[#This Row],[Data]]))","v":2022},"-"]
[null,29,"2022-01-31",{"$f":"IF(OR(TB_AtivDiarias[[#This Row],[Data]]=\"\",TB_AtivDiarias[[#This Row],[Data]]=\"-\"),\"-\",PROPER(TEXT(TB_AtivDiarias[[#This Row],[Data]],\"DDDD\")))","v":"Segunda-Feira"},"ISS - A",null,"Ocasional","Profissional",{"$f":"PROPER(IF(TB_AtivDiarias[[#This Row],[Data]]=\"\",\"\",TEXT(TB_AtivDiarias[[#This Row],[Data]],\"MMMM\")))","v":"Janeiro"},{"$f":"IF(TB_AtivDiarias[[#This Row],[Data]]=\"\",\"\",YEAR(TB_AtivDiarias[[#This Row],[Data]]))","v":2022}]
[null,28,"2022-01-31",{"$f":"IF(OR(TB_AtivDiarias[[#This Row],[Data]]=\"\",TB_AtivDiarias[[#This Row],[Data]]=\"-\"),\"-\",PROPER(TEXT(TB_AtivDiarias[[#This Row],[Data]],\"DDDD\")))","v":"Segunda-Feira"},"ALV - FUNC",null,"Ocasional","Profissional",{"$f":"PROPER(IF(TB_AtivDiarias[[#This Row],[Data]]=\"\",\"\",TEXT(TB_AtivDiarias[[#This Row],[Data]],\"MMMM\")))","v":"Janeiro"},{"$f":"IF(TB_AtivDiarias[[#This Row],[Data]]=\"\",\"\",YEAR(TB_AtivDiarias[[#This Row],[Data]]))","v":2022}]
[null,27,"2022-01-31",{"$f":"IF(OR(TB_AtivDiarias[[#This Row],[Data]]=\"\",TB_AtivDiarias[[#This Row],[Data]]=\"-\"),\"-\",PROPER(TEXT(TB_AtivDiarias[[#This Row],[Data]],\"DDDD\")))","v":"Segunda-Feira"},"ALV - SAN",null,"Ocasional","Profissional",{"$f":"PROPER(IF(TB_AtivDiarias[[#This Row],[Data]]=\"\",\"\",TEXT(TB_AtivDiarias[[#This Row],[Data]],\"MMMM\")))","v":"Janeiro"},{"$f":"IF(TB_AtivDiarias[[#This Row],[Data]]=\"\",\"\",YEAR(TB_AtivDiarias[[#This Row],[Data]]))","v":2022}]
[null,15,"2022-01-20",{"$f":"IF(OR(TB_AtivDiarias[[#This Row],[Data]]=\"\",TB_AtivDiarias[[#This Row],[Data]]=\"-\"),\"-\",PROPER(TEXT(TB_AtivDiarias[[#This Row],[Data]],\"DDDD\")))","v":"Quinta-Feira"},"CEL - S",null,"Recorrente - data fixa","Profissional",{"$f":"PROPER(IF(TB_AtivDiarias[[#This Row],[Data]]=\"\",\"\",TEXT(TB_AtivDiarias[[#This Row],[Data]],\"MMMM\")))","v":"Janeiro"},{"$f":"IF(TB_AtivDiarias[[#This Row],[Data]]=\"\",\"\",YEAR(TB_AtivDiarias[[#This Row],[Data]]))","v":2022}]
[null,8,"2022-01-10",{"$f":"IF(OR(TB_AtivDiarias[[#This Row],[Data]]=\"\",TB_AtivDiarias[[#This Row],[Data]]=\"-\"),\"-\",PROPER(TEXT(TB_AtivDiarias[[#This Row],[Data]],\"DDDD\")))","v":"Segunda-Feira"},"OCD",null,"Recorrente - data fixa","Profissional",{"$f":"PROPER(IF(TB_AtivDiarias[[#This Row],[Data]]=\"\",\"\",TEXT(TB_AtivDiarias[[#This Row],[Data]],\"MMMM\")))","v":"Janeiro"},{"$f":"IF(TB_AtivDiarias[[#This Row],[Data]]=\"\",\"\",YEAR(TB_AtivDiarias[[#This Row],[Data]]))","v":2022},"-"]